bitfinex/quotes_SOLUSD_20250101
["timestamp","ask_amount","ask_price","bid_price","bid_amount"]
[1735690982550,10.5640221,191.04,190.98,1.80660097]
[1735690983067,10.5640221,191.04,190.96,16.7711221]
[1735690983246,10.5640221,191.04,190.97,10.5640221]
[1735690984569,10.5640221,191.04,190.98,1.80701876]
[1735690984773,10.5640221,191.05,190.98,1.80701876]
[1735690984978,10.5640221,191.06,190.98,12.37104086]
[1735690985476,10.5640221,191.06,190.98,10.5640221]
[1735690986175,10.5640221,191.07,190.99,15.26335478]
[1735690986376,10.5640221,191.06,190.99,15.26335478]
[1735690986579,10.5640221,191.05,190.99,4.69933268]
[1735690987088,10.5640221,191.05,191.0,1.80730945]
[1735690987578,10.5640221,191.05,190.98,10.5640221]
[1735690987875,10.5640221,191.05,190.97,10.5640221]
[1735690988381,10.5640221,191.04,190.98,1.80762857]
[1735690988676,30.5640221,191.04,190.98,1.80762857]
[1735690988861,30.5640221,191.04,190.96,10.5640221]
[1735690989063,30.5640221,191.04,190.97,10.5640221]
[1735690989255,30.5640221,191.04,190.97,12.37190376]
[1735690989975,30.5640221,191.04,190.98,1.80788166]
[1735690990579,20.0,191.04,190.98,12.37190376]
[1735690990883,20.0,191.04,190.98,10.5640221]
[1735690991056,20.0,191.04,190.97,10.5640221]
[1735690991257,50.5078884,191.1,190.96,10.5640221]
[1735690991258,10.5640221,191.03,190.96,10.5640221]
[1735690991559,20.0,191.05,190.96,10.5640221]
[1735690991772,30.5640221,191.05,190.96,10.5640221]
[1735690992058,30.5640221,191.05,190.98,10.5640221]
[1735690992668,10.5640221,191.04,190.97,1.80818214]
[1735690993373,10.5640221,191.04,190.98,1.80818214]
[1735690993885,10.5640221,191.04,190.97,2.89342136]
[1735690994483,10.5640221,191.04,190.96,10.5640221]
[1735690994951,10.5640221,191.03,190.97,1.80818484]
[1735690995761,10.5640221,191.03,190.96,2.89409912]
[1735690996471,10.5640221,191.03,190.95,10.5640221]
[1735690997290,10.5640221,191.03,190.96,1.80875109]
[1735690997957,10.5640221,191.02,190.97,1.80875109]
[1735690998161,24.6844,191.07,190.97,1.80875109]
[1735690998460,10.5640221,191.06,190.98,10.5640221]
[1735690998772,10.5640221,191.06,190.99,10.5640221]
[1735690999105,10.5640221,191.06,190.99,12.37277319]
[1735690999387,10.5640221,191.05,190.98,10.5640221]
[1735690999575,10.5640221,191.05,190.97,20.0]
[1735690999763,10.5640221,191.05,190.98,10.5640221]
[1735691000284,10.5640221,191.05,190.99,1.80923157]
[1735691000786,10.5640221,191.05,190.98,10.5640221]
[1735691002281,10.5640221,191.05,190.99,1.80979359]
[1735691003082,10.5640221,191.05,191.0,1.80979359]
[1735691003853,10.5640221,191.03,190.95,3.24297373]
[1735691004055,10.5640221,191.03,190.95,13.80699583]
[1735691004254,10.5640221,191.03,190.96,3.24297373]
[1735691004490,10.5640221,191.03,190.96,7.95059394]
[1735691005287,10.5640221,191.03,190.97,1.81049671]
[1735691006198,10.5640221,191.03,190.98,1.81049671]
[1735691007190,10.5640221,191.03,190.95,10.5640221]
[1735691007886,10.5640221,191.03,190.96,4.71053255]
[1735691008287,10.5640221,190.99,190.96,4.71053255]
[1735691008783,10.5640221,190.99,190.95,3.24613144]
[1735691008974,10.5640221,190.99,190.92,10.5640221]
[1735691009490,10.5640221,190.99,190.93,4.71659531]
[1735691009897,11.6,191.01,190.93,15.28061741]
[1735691010185,11.6,191.04,190.98,10.5640221]
[1735691010388,1.5432,191.07,190.99,10.5640221]
[1735691010575,12.1072221,191.07,190.99,10.5640221]
[1735691010777,30.5640221,191.05,190.98,10.5640221]
[1735691011478,30.5640221,191.05,190.99,1.81302041]
[1735691012174,30.5640221,191.05,190.97,10.5640221]
[1735691012565,10.5640221,191.04,190.96,10.5640221]
[1735691012895,10.5640221,191.04,190.97,4.71523282]
[1735691013094,10.5640221,191.03,190.97,4.71523282]
[1735691013280,10.5640221,191.01,190.97,4.71523282]
[1735691013473,10.5640221,191.02,190.97,4.71523282]
[1735691013678,10.5640221,191.02,190.98,1.81342455]
[1735691014272,10.5640221,191.02,190.95,3.24856798]
[1735691014765,10.5640221,191.02,190.94,18.5919221]
[1735691014966,10.5640221,191.02,190.96,4.71621554]
[1735691015472,10.5640221,191.02,190.97,1.81380249]
[1735691016072,10.5640221,191.02,190.98,1.81380249]
[1735691016886,10.5640221,191.02,190.94,18.5919221]
[1735691017673,10.5640221,191.02,190.95,4.7161076]
[1735691018397,10.5640221,191.02,190.96,4.7161076]
[1735691018893,10.5640221,191.0,190.96,4.7161076]
[1735691019116,10.5640221,191.0,190.94,1.5852]
[1735691019266,10.5640221,190.98,190.91,10.5640221]
[1735691019477,10.5640221,190.96,190.92,3.25018721]
[1735691019690,10.5640221,190.96,190.92,4.71754379]
[1735691019992,10.5640221,190.95,190.92,4.71754379]
[1735691020202,10.5640221,190.96,190.92,4.71754379]
[1735691020386,10.5640221,190.96,190.93,4.71754379]
[1735691021499,10.5640221,190.96,190.9,6.4645]
[1735691021964,11.6,190.98,190.9,17.0285221]
[1735691022168,10.5640221,190.97,190.91,4.71535965]
[1735691023077,10.5640221,190.97,190.92,4.71535965]
[1735691023697,10.5640221,190.97,190.93,1.81347329]
[1735691024071,11.6,191.02,190.93,1.81347329]
[1735691024072,10.5640221,190.98,190.93,1.81347329]
[1735691024473,10.5640221,190.98,190.94,1.81347329]
[1735691025100,10.5640221,190.98,190.91,10.5640221]
[1735691025689,10.5640221,190.98,190.91,13.80996605]
[1735691025884,10.5640221,190.99,190.92,15.27541078]
[1735691026103,10.5640221,191.0,190.92,15.27541078]
[1735691026682,10.5640221,191.0,190.93,1.8119461]
[1735691027005,11.6,191.03,190.93,1.8119461]
[1735691027176,10.5640221,191.0,190.93,1.8119461]
[1735691027375,10.5640221,191.0,190.94,1.8119461]
[1735691027594,10.5640221,190.99,190.94,1.8119461]
[1735691027996,10.5640221,190.99,190.95,1.8119461]
[1735691028708,10.5640221,190.99,190.92,10.5640221]
[1735691029389,10.5640221,190.99,190.93,4.70994535]
[1735691030297,10.5640221,190.99,190.94,1.81139102]
[1735691030506,10.5640221,190.98,190.94,1.81139102]
[1735691030992,11.6,191.08,190.97,16.7675221]
[1735691031190,10.5640221,191.08,191.01,10.5640221]
[1735691031887,10.5640221,191.09,191.02,10.5640221]
[1735691032286,26.1993,191.13,191.04,10.5640221]
[1735691032493,10.5640221,191.14,191.07,10.5640221]
[1735691032689,10.5640221,191.16,191.09,10.5640221]
[1735691032888,10.5640221,191.16,191.07,1.5451]
[1735691032889,8.18605571,191.17,191.11,10.5640221]
[1735691033498,10.5640221,191.18,191.11,10.5640221]
[1735691034206,10.5640221,191.17,191.11,10.5640221]
[1735691034412,10.5640221,191.17,191.1,10.5640221]
[1735691035614,10.5640221,191.17,191.1,16.7675221]
[1735691037514,10.5640221,191.16,191.1,6.2035]
[1735691040006,10.5640221,191.15,191.1,6.2035]
[1735691040719,10.5640221,191.16,191.1,6.2035]
[1735691046110,10.5640221,191.17,191.1,16.7675221]
[1735691048335,11.6,191.22,191.11,34.3409061]
[1735691048506,11.6,191.22,191.1,6.2035]
[1735691048507,13.2336,191.27,191.15,34.3409061]
[1735691048707,10.5640221,191.22,191.15,34.3409061]
[1735691049227,20.0,191.24,191.15,34.3409061]
[1735691049428,10.5640221,191.22,191.15,34.3409061]
[1735691051127,11.6,191.3,191.18,6.0713]
[1735691051331,10.5640221,191.24,191.18,6.0713]
[1735691052144,10.5640221,191.22,191.18,6.0713]
[1735691052315,10.5640221,191.19,191.14,7.6179]
[1735691052626,10.5640221,191.2,191.14,27.6179]
[1735691053219,10.5640221,191.21,191.14,38.1819221]
[1735691053942,10.5640221,191.2,191.14,27.6179]
[1735691054245,33.0718,191.25,191.14,27.6179]
[1735691054549,10.5640221,191.21,191.14,38.1819221]
[1735691054847,10.5640221,191.2,191.15,23.776884]
[1735691055030,10.5640221,191.21,191.15,23.776884]
[1735691055623,10.5640221,191.2,191.14,27.6179]
[1735691055837,13.0718,191.25,191.15,10.5640221]
[1735691056026,10.5640221,191.22,191.15,10.5640221]
[1735691056859,13.0718,191.25,191.15,10.5640221]
[1735691057156,10.5640221,191.22,191.15,10.5640221]
[1735691057462,10.5640221,191.21,191.14,38.1819221]
[1735691057630,10.5640221,191.2,191.14,27.6179]
[1735691057826,11.6,191.27,191.14,7.6179]
[1735691057827,10.5640221,191.18,191.14,7.6179]
[1735691058033,10.5640221,191.17,191.14,7.6179]
[1735691058542,10.5640221,191.16,191.1,6.0713]
[1735691058849,10.5640221,191.15,191.1,6.0713]
[1735691059054,10.5640221,191.14,191.1,6.0713]
[1735691060531,10.5640221,191.13,191.09,1.5466]
[1735691060737,13.0765,191.19,191.05,6.1631]
[1735691060738,10.5640221,191.11,191.05,7.8191]
[1735691062145,13.0783,191.16,191.05,18.3831221]
[1735691062146,10.5640221,191.12,191.05,18.3831221]
[1735691062346,10.5640221,191.13,191.06,10.5640221]
[1735691063757,24.676,191.19,191.08,10.5640221]
[1735691064057,10.5640221,191.15,191.08,10.5640221]
[1735691064262,10.5640221,191.13,191.07,10.5640221]
[1735691064465,11.6,191.18,191.09,10.5640221]
[1735691064648,10.5640221,191.17,191.1,10.5640221]
[1735691066946,10.5640221,191.16,191.09,10.5640221]
[1735691067350,10.5640221,191.12,191.07,1.78999823]
[1735691068064,10.5640221,191.13,191.06,10.5640221]
[1735691068862,10.5640221,191.1,191.05,7.8191]
[1735691071139,10.5640221,191.09,191.05,7.8191]
[1735691075562,10.5640221,191.09,191.06,1.8037478]
[1735691076271,10.5640221,191.09,191.05,7.8191]
[1735691076660,10.5640221,191.1,191.05,7.8191]
[1735691077476,10.5640221,191.1,191.06,1.80540494]
[1735691077977,10.5640221,191.1,191.05,7.8191]
[1735691078570,10.5640221,191.1,191.05,1.656]
[1735691078881,10.5640221,191.06,190.96,1.6224]
[1735691079177,10.5640221,191.05,190.98,10.5640221]
[1735691079384,10.5640221,191.07,191.0,10.5640221]
[1735691079558,30.5640221,191.08,191.01,10.5640221]
[1735691080156,30.5640221,191.08,191.02,1.80641164]
[1735691080860,10.5640221,191.07,191.0,10.5640221]
[1735691081882,10.5640221,191.07,191.01,1.80501291]
[1735691082254,10.5640221,191.06,191.01,1.80501291]
[1735691082480,10.5640221,191.04,191.01,1.80501291]
[1735691082668,42.2560884,191.1,190.97,2.88771858]
[1735691082669,10.5640221,191.03,190.97,2.88771858]
[1735691083271,10.5640221,191.02,190.98,1.80514779]
[1735691084271,10.5640221,191.02,190.96,12.1864221]
[1735691085155,13.0847,191.07,190.96,12.1864221]
[1735691085156,13.0824,191.1,190.98,10.5640221]
[1735691085356,10.5640221,191.06,190.99,10.5640221]
[1735691089270,10.5640221,191.06,190.98,10.5640221]
[1735691089473,11.6,191.09,190.98,10.5640221]
[1735691089474,10.5640221,191.05,190.98,10.5640221]
[1735691091479,10.5640221,191.02,190.97,1.80165668]
[1735691091681,11.6,191.07,190.97,1.80165668]
[1735691091682,10.5640221,191.01,190.97,1.80165668]
[1735691092191,10.5640221,191.01,190.96,1.6224]
[1735691092569,10.5640221,190.99,190.96,1.6224]
[1735691092771,10.5640221,190.97,190.91,8.2656]
[1735691092967,10.5640221,190.94,190.91,8.2656]
[1735691093582,10.5640221,190.95,190.91,8.2656]
[1735691094391,16.51644713,190.95,190.91,8.2656]
[1735691095310,16.51644713,190.94,190.91,8.2656]
[1735691096698,16.51644713,190.94,190.91,1.6179]
[1735691097207,16.51644713,190.95,190.91,1.6179]
[1735691102112,16.51644713,190.93,190.86,37.88034713]
[1735691102607,16.51644713,190.95,190.89,20.0]
[1735691103307,11.6,191.05,190.94,16.51644713]
[1735691103499,16.51644713,191.02,190.96,16.51644713]
[1735691103707,16.51644713,191.02,190.93,28.2656]
[1735691103708,16.51644713,191.05,190.98,16.51644713]
[1735691105194,16.51644713,191.06,190.99,16.51644713]
[1735691105394,16.51644713,191.07,191.0,16.51644713]
[1735691107504,16.51644713,191.07,190.99,36.51644713]
[1735691108117,11.6,191.1,190.99,36.51644713]
[1735691108118,16.51644713,191.06,190.99,36.51644713]
[1735691108727,16.51644713,191.07,191.0,16.51644713]
[1735691109514,16.51644713,191.08,191.0,16.51644713]
[1735691110117,16.51644713,191.08,191.01,16.51644713]
[1735691110918,16.51644713,191.07,191.0,36.51644713]
[1735691111213,16.51644713,191.03,190.97,2.88280383]
[1735691111421,16.51644713,191.02,190.97,2.88280383]
[1735691111594,16.51644713,191.02,190.96,1.80321496]
[1735691111913,11.6,191.07,190.96,1.80321496]
[1735691112127,16.51644713,191.03,190.96,1.80321496]
[1735691112290,16.51644713,191.03,190.95,16.51644713]
[1735691115409,16.51644713,190.99,190.93,11.14840383]
[1735691116016,16.51644713,190.99,190.94,1.80484915]
[1735691116323,10.56635414,190.99,190.94,1.80484915]
[1735691117014,10.56635414,190.99,190.93,8.2656]
[1735691117211,10.56635414,191.0,190.93,18.83195414]
[1735691117423,10.56635414,191.0,190.93,21.72073059]
[1735691117616,11.6,191.05,190.93,21.72073059]
[1735691117934,10.56635414,191.0,190.93,21.72073059]
[1735691118221,11.6,191.04,190.93,8.2656]
[1735691118397,16.50857082,191.0,190.93,24.77417082]
[1735691120127,16.50857082,191.01,190.93,24.77417082]
[1735691121225,16.50857082,191.01,190.94,1.80677877]
[1735691121425,16.50857082,191.0,190.94,1.80677877]
[1735691121823,16.50857082,191.0,190.93,24.77417082]
[1735691123527,16.50857082,191.0,190.94,1.80779953]
[1735691124134,16.50857082,191.0,190.93,24.77417082]
[1735691125148,16.50857082,191.01,190.94,16.50857082]
[1735691125332,16.50857082,191.01,190.94,18.31712346]
[1735691125946,16.50857082,191.01,190.94,16.50857082]
[1735691127341,16.50857082,191.02,190.95,16.50857082]
[1735691127554,16.50857082,191.03,190.96,16.50857082]
[1735691128841,36.50857082,191.03,190.95,16.50857082]
[1735691129158,16.50857082,191.02,190.97,1.80812658]
[1735691129943,16.50857082,191.02,190.95,16.50857082]
[1735691130553,16.50857082,191.02,190.96,1.80818555]
[1735691131355,16.50857082,191.02,190.95,16.50857082]
[1735691131657,16.50857082,191.02,190.94,16.50857082]
[1735691132043,16.50857082,191.02,190.95,4.7001528]
[1735691132244,16.50857082,191.01,190.95,4.7001528]
[1735691133162,16.50857082,191.01,190.94,16.50857082]
[1735691134660,16.50857082,191.01,190.95,1.80860605]
[1735691135158,16.50857082,191.0,190.95,1.80860605]
[1735691135468,16.50857082,191.0,190.93,8.2656]
[1735691136561,16.50857082,190.98,190.94,4.70336862]
[1735691137059,16.50857082,190.98,190.93,8.2656]
[1735691138067,16.50857082,190.98,190.94,1.80938709]
[1735691138871,16.50857082,190.98,190.91,3.24191246]
[1735691139075,16.50857082,190.98,190.91,19.75048328]
[1735691139561,16.50857082,190.98,190.92,1.81018844]
[1735691140270,10.56757594,190.98,190.91,10.56757594]
[1735691140768,11.6,191.02,190.91,10.56757594]
[1735691141068,10.56757594,190.98,190.91,10.56757594]
[1735691142367,10.56757594,190.94,190.92,1.80999386]
[1735691142539,10.56757594,190.93,190.92,1.80999386]
[1735691143071,10.56757594,190.93,190.88,6.2936]
[1735691143749,10.56757594,190.93,190.89,1.81039175]
[1735691144467,10.56757594,190.93,190.88,6.2936]
[1735691145558,10.56757594,190.93,190.86,10.56757594]
[1735691146067,10.56757594,190.93,190.87,4.70524556]
[1735691146275,10.56757594,190.92,190.87,4.70524556]
[1735691146780,10.56757594,190.92,190.88,1.80958351]
[1735691147852,10.56757594,190.92,190.86,2.89476849]
[1735691148066,10.56757594,190.91,190.86,2.89476849]
[1735691148763,10.56757594,190.91,190.87,1.80877549]
[1735691149352,10.56757594,190.91,190.84,18.52367594]
[1735691149960,10.56757594,190.91,190.85,4.70217518]
[1735691150771,10.56757594,190.91,190.86,1.80840267]
[1735691150955,10.56757594,190.9,190.86,1.80840267]
[1735691151449,10.56757594,190.9,190.84,7.9561]
[1735691151874,10.56757594,190.91,190.84,18.52367594]
[1735691152254,10.56757594,190.91,190.85,4.70179666]
[1735691152573,10.56757594,190.9,190.85,4.70179666]
[1735691153077,10.56757594,190.9,190.86,1.80825707]
[1735691153762,10.56757594,190.9,190.84,7.9561]
[1735691154377,10.56757594,190.9,190.85,4.70174653]
[1735691154981,10.56757594,190.9,190.86,1.8082378]
[1735691155381,11.6,190.94,190.86,1.8082378]
[1735691155382,10.56757594,190.91,190.86,1.8082378]
[1735691155558,10.56757594,190.92,190.86,1.8082378]
[1735691155883,10.56757594,190.92,190.87,1.8082378]
[1735691156758,10.56757594,190.92,190.85,10.56757594]
[1735691157678,10.56757594,190.92,190.86,1.80878932]
[1735691157993,11.6,190.95,190.86,1.80878932]
[1735691158180,11.6,190.99,190.86,1.80878932]
[1735691158358,10.56757594,190.97,190.9,10.56757594]
[1735691158860,10.56757594,190.98,190.91,10.56757594]
[1735691159181,10.56757594,191.0,190.93,10.56757594]
[1735691159683,10.56757594,190.99,190.92,10.56757594]
[1735691160759,10.56757594,190.99,190.93,1.80764173]
[1735691161389,10.56757594,190.99,190.92,10.56757594]
[1735691162768,10.56757594,190.99,190.91,10.56757594]
[1735691162963,10.56757594,190.98,190.93,1.80825114]
[1735691163474,10.56757594,190.98,190.91,10.56757594]
[1735691164268,13.1923,191.02,190.92,3.46461874]
[1735691164269,11.6,191.02,190.92,3.46461874]
[1735691164478,10.56757594,191.0,190.93,10.56757594]
[1735691165188,10.56757594,191.0,190.94,1.80901874]
[1735691166095,10.56757594,190.99,190.92,12.22317594]
[1735691166260,10.56757594,190.98,190.92,1.6556]
[1735691166763,10.56757594,190.98,190.93,1.80922296]
[1735691167209,10.56757594,190.98,190.94,1.80922296]
[1735691167365,10.56757594,190.97,190.94,1.80922296]
[1735691167876,10.56757594,190.97,190.92,1.6556]
[1735691168492,10.56757594,190.97,190.93,1.80943649]
[1735691169196,10.56757594,190.97,190.92,1.6556]
[1735691170500,10.56757594,190.97,190.93,1.80961136]
[1735691170995,10.56757594,190.96,190.93,1.80961136]
[1735691171403,23.776884,191.03,190.9,3.24277598]
[1735691171404,10.56757594,190.94,190.9,3.24277598]
[1735691171594,10.56757594,190.93,190.9,3.24277598]
[1735691171896,10.56757594,190.93,190.87,1.6556]
[1735691172196,10.56757594,190.93,190.91,1.81061687]
[1735691172785,10.56757594,190.92,190.89,2.89755957]
[1735691173033,10.56757594,190.9,190.89,2.89755957]
[1735691173209,10.56757594,190.9,190.85,23.2440011]
[1735691173507,10.56757594,190.89,190.85,23.2440011]
[1735691173679,10.56757594,190.89,190.85,20.0]
[1735691173880,10.56757594,190.89,190.86,4.71118871]
[1735691174598,10.56757594,190.89,190.87,4.71118871]
[1735691175420,10.56757594,190.89,190.88,1.81186916]
[1735691176201,10.56757594,190.89,190.84,2.90049515]
[1735691176402,10.56757594,190.86,190.84,2.90049515]
[1735691176987,10.56757594,190.87,190.81,9.67565592]
[1735691177310,10.56757594,190.87,190.81,6.4283]
[1735691177813,10.56757594,190.87,190.82,4.71431191]
[1735691178024,10.56757594,190.88,190.82,4.71431191]
[1735691178595,10.56757594,190.88,190.83,4.71431191]
[1735691179423,10.56757594,190.88,190.84,1.8130703]
[1735691179935,10.56757594,190.87,190.84,1.8130703]
[1735691180238,10.56757594,190.87,190.85,1.8130703]
[1735691180803,10.56757594,190.87,190.83,2.90147952]
[1735691181320,10.56757594,190.87,190.84,1.81334501]
[1735691181618,10.56757594,190.85,190.84,1.81334501]
[1735691182203,66.96610376,190.9,190.82,3.24735592]
[1735691182204,10.56757594,190.86,190.82,3.24735592]
[1735691182607,10.56757594,190.86,190.79,12.22317594]
[1735691182802,10.56757594,190.86,190.8,2.90237732]
[1735691183523,10.56757594,190.86,190.81,1.81345458]
[1735691184127,10.56757594,190.86,190.82,1.81345458]
[1735691184633,10.56757594,190.85,190.82,1.81345458]
[1735691184940,10.56757594,190.85,190.8,2.90114183]
[1735691185319,10.56757594,190.85,190.81,1.81310522]
[1735691185626,10.56757594,190.83,190.81,1.81310522]
[1735691186221,10.56757594,190.83,190.78,6.14856084]
[1735691186725,10.56757594,190.83,190.79,1.81286645]
[1735691187133,10.56757594,190.84,190.79,1.81286645]
[1735691187524,10.56757594,190.84,190.77,10.56757594]
[1735691188320,10.56757594,190.84,190.78,1.81261669]
[1735691188723,22.16757594,190.86,190.79,10.56757594]
[1735691189140,22.16757594,190.86,190.79,12.38019263]
[1735691189637,22.16757594,190.86,190.8,1.81261669]
[1735691190326,22.16757594,190.86,190.79,10.56757594]
[1735691191646,10.56757594,190.85,190.78,13.46643233]
[1735691191946,10.56757594,190.85,190.8,1.81208073]
[1735691192142,11.6,190.86,190.8,1.81208073]
[1735691192344,10.56757594,190.85,190.8,1.81208073]
[1735691192544,10.56757594,190.85,190.78,10.56757594]
[1735691192753,10.56757594,190.84,190.77,13.46747654]
[1735691193115,10.56757594,190.83,190.77,6.14730307]
[1735691193817,10.56757594,190.83,190.78,4.71222823]
[1735691194443,10.56757594,190.83,190.79,1.81232763]
[1735691195348,10.56757594,190.83,190.77,2.8999006]
[1735691196031,10.56757594,190.83,190.78,1.81080018]
[1735691196738,10.56757594,190.83,190.79,1.81080018]
[1735691197445,10.56757594,190.83,190.77,2.8999006]
[1735691198136,10.56757594,190.83,190.78,1.80996032]
[1735691198845,10.56757594,190.83,190.76,13.46747654]
[1735691199744,10.56757594,190.83,190.77,1.80973817]
[1735691200341,10.56757594,190.83,190.78,1.80973817]
[1735691200845,10.56757594,190.83,190.76,13.46747654]
[1735691201227,10.56757594,190.82,190.76,2.8999006]
[1735691201431,10.56757594,190.81,190.76,2.8999006]
[1735691201828,10.56757594,190.81,190.77,1.80936245]
[1735691202731,10.56757594,190.81,190.76,1.80936245]
[1735691203135,10.56757594,190.81,190.74,1.5252]
[1735691203755,10.56757594,190.81,190.75,1.80931426]
[1735691204431,10.56757594,190.81,190.74,12.09277594]
[1735691205250,10.56757594,190.82,190.75,30.56757594]
[1735691205745,11.6,190.85,190.75,30.56757594]
[1735691205934,10.56757594,190.82,190.75,30.56757594]
[1735691206638,10.56757594,190.81,190.75,20.0]
[1735691208747,10.56757594,190.81,190.74,12.09277594]
[1735691209050,10.56757594,190.79,190.74,1.5252]
[1735691209242,10.56757594,190.8,190.74,1.5252]
[1735691209649,10.56757594,190.8,190.75,1.80987365]
[1735691210567,10.56757594,190.8,190.74,1.5252]
[1735691211956,10.56757594,190.8,190.75,1.81063461]
[1735691212648,10.56757594,190.8,190.74,1.5252]
[1735691213363,10.56757594,190.76,190.74,2.89612646]
[1735691213653,10.56757594,190.79,190.74,2.89612646]
[1735691213861,10.56757594,190.79,190.72,12.38050591]
[1735691214865,10.56757594,190.79,190.72,10.56757594]
[1735691215035,11.6,190.84,190.73,10.56757594]
[1735691215362,10.56757594,190.81,190.75,10.56757594]
[1735691216161,10.56757594,190.81,190.74,10.56757594]
[1735691216666,10.56757594,190.81,190.75,1.81437307]
[1735691216835,11.6,190.84,190.75,12.38194901]
[1735691217464,10.56757594,190.82,190.75,12.38194901]
[1735691217761,10.56757594,190.82,190.75,10.56757594]
[1735691218262,10.56757594,190.81,190.74,10.56757594]
[1735691219167,10.56757594,190.81,190.75,1.8159626]
[1735691219962,10.56757594,190.81,190.76,1.8159626]
[1735691220764,10.56757594,190.79,190.72,10.56757594]
[1735691221068,10.56757594,190.79,190.71,17.08417594]
[1735691221371,10.56757594,190.79,190.73,4.72512224]
[1735691221531,10.56757594,190.77,190.73,4.72512224]
[1735691221737,10.56757594,190.76,190.73,4.72512224]
[1735691221937,10.56757594,190.79,190.72,3.25579754]
[1735691222144,10.56757594,190.79,190.71,6.5166]
[1735691222468,10.56757594,190.79,190.72,10.56757594]
[1735691222839,10.56757594,190.79,190.72,4.72525625]
[1735691223144,10.56757594,190.79,190.72,15.29283219]
[1735691223643,10.56757594,190.79,190.73,1.81727938]
[1735691224155,10.56757594,190.79,190.72,10.56757594]
[1735691225768,10.56757594,190.79,190.73,1.81609617]
[1735691226470,10.56757594,190.79,190.72,10.56757594]
[1735691227075,10.56757594,190.77,190.71,6.5166]
[1735691227959,10.56757594,190.77,190.72,1.8153357]
[1735691228140,23.776884,190.83,190.72,1.8153357]
[1735691228141,10.56757594,190.76,190.72,1.8153357]
[1735691228475,10.56757594,190.75,190.72,1.8153357]
[1735691229040,10.56757594,190.75,190.7,2.90439902]
[1735691229261,10.56757594,190.73,190.7,2.90439902]
[1735691229847,10.56757594,190.73,190.67,6.15708427]
[1735691230077,10.56757594,190.72,190.67,6.15708427]
[1735691230589,10.56757594,190.72,190.68,4.71953106]
[1735691231388,10.56757594,190.72,190.66,6.1988]
[1735691232378,10.56757594,190.7,190.65,1.5972]
[1735691232677,10.56757594,190.7,190.63,10.56757594]
[1735691233352,10.56757594,190.7,190.64,1.81464721]
[1735691233881,10.56757594,190.7,190.65,1.81464721]
[1735691234771,10.56757594,190.72,190.65,10.56757594]
[1735691235290,10.56757594,190.71,190.66,1.81284086]
[1735691235473,10.56757594,190.7,190.66,1.81284086]
[1735691235958,10.56757594,190.7,190.63,10.56757594]
[1735691236765,10.56757594,190.71,190.64,10.56757594]
[1735691239601,10.56757594,190.72,190.65,10.56757594]
[1735691240402,10.56757594,190.71,190.64,10.56757594]
[1735691249403,10.56757594,190.71,190.63,10.56757594]
[1735691250599,10.56757594,190.7,190.64,1.81235399]
[1735691250804,10.56757594,190.71,190.64,1.81235399]
[1735691251192,10.56757594,190.71,190.63,10.56757594]
[1735691253904,10.56757594,190.7,190.63,10.56757594]
[1735691254103,10.56757594,190.71,190.64,10.56757594]
[1735691254812,11.6,190.75,190.64,10.56757594]
[1735691255012,10.56757594,190.71,190.67,20.0]
[1735691255188,10.56757594,190.77,190.7,10.56757594]
[1735691256310,10.56757594,190.76,190.69,10.56757594]
[1735691257702,11.6,190.78,190.69,10.56757594]
[1735691258003,10.56757594,190.76,190.69,10.56757594]
[1735691259507,11.6,190.78,190.68,18.20287594]
[1735691259508,10.56757594,190.75,190.68,18.20287594]
[1735691261095,10.56757594,190.72,190.68,7.6353]
[1735691261712,10.56757594,190.72,190.68,1.5236]
[1735691262919,10.56757594,190.7,190.64,7.6353]
[1735691270314,10.56757594,190.69,190.64,7.6353]
[1735691270631,10.56757594,190.7,190.64,7.6353]
[1735691273417,10.56757594,190.71,190.64,18.20287594]
[1735691277246,11.6,190.74,190.65,10.56757594]
[1735691277434,10.56757594,190.75,190.68,10.56757594]
[1735691277743,10.56757594,190.77,190.7,10.56757594]
[1735691279434,10.56757594,190.76,190.69,10.56757594]
[1735691283856,10.56757594,190.74,190.66,13.1119]
[1735691284157,10.56757594,190.74,190.67,10.56757594]
[1735691289753,10.56757594,190.75,190.68,10.56757594]
[1735691290055,20.0,190.76,190.7,10.56757594]
[1735691290244,11.6,190.8,190.7,10.56757594]
[1735691290450,10.56757594,190.76,190.7,10.56757594]
[1735691291459,10.56757594,190.76,190.69,10.56757594]
[1735691292658,31.6,190.8,190.69,10.56757594]
[1735691292843,11.6,190.84,190.73,10.56757594]
[1735691293187,10.56757594,190.8,190.73,10.56757594]
[1735691295056,10.56757594,190.81,190.73,10.56757594]
[1735691296160,10.56757594,190.76,190.71,6.615]
[1735691296658,10.56757594,190.72,190.7,1.6503]
[1735691297041,10.56757594,190.73,190.7,1.6503]
[1735691299263,53.87030376,190.8,190.7,1.6503]
[1735691299450,10.56757594,190.73,190.7,1.6503]
[1735691299655,10.56757594,190.74,190.7,1.6503]
[1735691301665,53.87030376,190.8,190.67,6.615]